[Event "*** Titled Tuesday Blitz"]
[Site "Chess.com"]
[Date "2020.12.29"]
[Round "9"]
[White "BelaKis"]
[Black "akanga001"]
[Result "1/2-1/2"]
[WhiteElo "2121"]
[BlackElo "1949"]
[TimeControl "180+1"]
[EndTime "11:45:03 PST"]
[Termination "Game drawn by repetition"]

1. d4 {[%clk 0:03:00.9]} 1... Nf6 {[%clk 0:02:57.7]} 2. c4 {[%clk 0:03:00.1]}
2... b6 {[%clk 0:02:56.4]} 3. Nc3 {[%clk 0:02:59.6]} 3... Bb7 {[%clk 0:02:56.9]}
4. a3 {[%clk 0:02:50.3]} 4... d6 {[%clk 0:02:57]} 5. e4 {[%clk 0:02:48.3]} 5...
Nbd7 {[%clk 0:02:57.3]} 6. f3 {[%clk 0:02:44.9]} 6... e5 {[%clk 0:02:57.7]} 7.
Nge2 {[%clk 0:02:44.9]} 7... a5 {[%clk 0:02:58.1]} 8. Be3 {[%clk 0:02:42.7]}
8... g6 {[%clk 0:02:58.5]} 9. Qd2 {[%clk 0:02:42.6]} 9... Bg7 {[%clk 0:02:58.4]}
10. Rb1 {[%clk 0:02:32.4]} 10... O-O {[%clk 0:02:55.7]} 11. d5 {[%clk
0:02:17.7]} 11... a4 {[%clk 0:02:40]} 12. Nc1 {[%clk 0:01:55.2]} 12... Nc5
{[%clk 0:02:35.1]} 13. Be2 {[%clk 0:01:55]} 13... Nfd7 {[%clk 0:02:31.7]} 14.
Bd1 {[%clk 0:01:33.9]} 14... f5 {[%clk 0:02:28.4]} 15. Nd3 {[%clk 0:01:32.3]}
15... f4 {[%clk 0:02:26]} 16. Bf2 {[%clk 0:01:32.2]} 16... Ba6 {[%clk
0:02:18.2]} 17. Nb5 {[%clk 0:01:23.2]} 17... Bxb5 {[%clk 0:02:09.9]} 18. cxb5
{[%clk 0:01:22.9]} 18... g5 {[%clk 0:02:09.8]} 19. h3 {[%clk 0:01:20.6]} 19...
h5 {[%clk 0:02:09]} 20. Nb4 {[%clk 0:01:07.9]} 20... Qf6 {[%clk 0:02:01.8]} 21.
Qc3 {[%clk 0:01:01.7]} 21... Kh7 {[%clk 0:01:49.5]} 22. Be2 {[%clk 0:00:58.9]}
22... Rg8 {[%clk 0:01:43.1]} 23. Na6 {[%clk 0:00:57]} 23... Rac8 {[%clk
0:01:38]} 24. Qb4 {[%clk 0:00:44.6]} 24... Kg6 {[%clk 0:01:17.9]} 25. Rc1 {[%clk
0:00:31.3]} 25... Rh8 {[%clk 0:01:15.2]} 26. Nxc5 {[%clk 0:00:20.5]} 26... dxc5
{[%clk 0:01:00.6]} 27. Qxa4 {[%clk 0:00:19.5]} 27... Qd6 {[%clk 0:00:52]} 28.
Qc4 {[%clk 0:00:19.4]} 28... Nf6 {[%clk 0:00:51.2]} 29. a4 {[%clk 0:00:19.1]}
29... g4 {[%clk 0:00:50.6]} 30. hxg4 {[%clk 0:00:19.1]} 30... hxg4 {[%clk
0:00:50.5]} 31. Kd2 {[%clk 0:00:20]} 31... g3 {[%clk 0:00:49.4]} 32. Rxh8 {[%clk
0:00:19.7]} 32... Rxh8 {[%clk 0:00:48]} 33. Bg1 {[%clk 0:00:20.6]} 33... Bf8
{[%clk 0:00:32.3]} 34. Kc3 {[%clk 0:00:20]} 34... Qe7 {[%clk 0:00:31.9]} 35. b3
{[%clk 0:00:20.1]} 35... Qg7 {[%clk 0:00:30.8]} 36. Kb2 {[%clk 0:00:20.3]} 36...
Bd6 {[%clk 0:00:30.5]} 37. Bf1 {[%clk 0:00:20.6]} 37... Rh1 {[%clk 0:00:22.2]}
38. Be2 {[%clk 0:00:20.3]} 38... Qh6 {[%clk 0:00:21.5]} 39. Ra1 {[%clk
0:00:19.4]} 39... Nh7 {[%clk 0:00:17.1]} 40. a5 {[%clk 0:00:19.8]} 40... Ng5
{[%clk 0:00:16.9]} 41. a6 {[%clk 0:00:19.4]} 41... Nh3 {[%clk 0:00:15.1]} 42. a7
{[%clk 0:00:19.5]} 42... Rxg1 {[%clk 0:00:12.6]} 43. Rxg1 {[%clk 0:00:18.8]}
43... Nxg1 {[%clk 0:00:12.3]} 44. a8=Q {[%clk 0:00:19.7]} 44... Nxe2 {[%clk
0:00:12.8]} 45. Qxe2 {[%clk 0:00:20.3]} 45... Qh1 {[%clk 0:00:10.5]} 46. Qe8+
{[%clk 0:00:20.7]} 46... Kf6 {[%clk 0:00:08.4]} 47. Qe6+ {[%clk 0:00:21]} 47...
Kg7 {[%clk 0:00:06]} 48. Qd7+ {[%clk 0:00:21.1]} 48... Kg6 {[%clk 0:00:05.1]}
49. Qe6+ {[%clk 0:00:21.4]} 49... Kg7 {[%clk 0:00:05.2]} 50. Qd7+ {[%clk
0:00:21.5]} 50... Kg6 {[%clk 0:00:05.6]} 51. Qe6+ {[%clk 0:00:21.9]} 51... Kg7
{[%clk 0:00:06.1]} 1/2-1/2

[Event "*** Titled Tuesday Blitz"]
[Site "Chess.com"]
[Date "2020.12.29"]
[Round "9"]
[White "Agoking701"]
[Black "Itk04"]
[Result "0-1"]
[WhiteElo "2348"]
[BlackElo "2466"]
[TimeControl "180+1"]
[EndTime "11:45:04 PST"]
[Termination "Itk04 won on time"]

1. e4 {[%clk 0:02:52]} 1... e6 {[%clk 0:03:00.4]} 2. d4 {[%clk 0:02:51.3]} 2...
d5 {[%clk 0:03:00.8]} 3. e5 {[%clk 0:02:46]} 3... c5 {[%clk 0:03:00.5]} 4. c3
{[%clk 0:02:46.3]} 4... Nc6 {[%clk 0:03:00.8]} 5. Nf3 {[%clk 0:02:46.7]} 5...
Bd7 {[%clk 0:03:01.3]} 6. Bd3 {[%clk 0:02:45.7]} 6... Rc8 {[%clk 0:03:00.1]} 7.
a3 {[%clk 0:02:43.8]} 7... Nge7 {[%clk 0:02:34.5]} 8. O-O {[%clk 0:02:38.2]}
8... cxd4 {[%clk 0:02:32.7]} 9. cxd4 {[%clk 0:02:36.7]} 9... Nf5 {[%clk
0:02:33.4]} 10. Bc2 {[%clk 0:02:29.7]} 10... Be7 {[%clk 0:02:07.4]} 11. Nc3
{[%clk 0:02:28.8]} 11... O-O {[%clk 0:02:07.2]} 12. Bxf5 {[%clk 0:02:23.6]}
12... exf5 {[%clk 0:02:08.1]} 13. Nxd5 {[%clk 0:02:23.4]} 13... Be6 {[%clk
0:02:00.1]} 14. Nf4 {[%clk 0:02:11.9]} 14... Bd5 {[%clk 0:01:54.2]} 15. Be3
{[%clk 0:02:02.3]} 15... Qd7 {[%clk 0:01:39]} 16. Rc1 {[%clk 0:02:01.8]} 16...
Rfd8 {[%clk 0:01:39]} 17. Qd2 {[%clk 0:01:57.7]} 17... Bxf3 {[%clk 0:01:22.8]}
18. gxf3 {[%clk 0:01:58.4]} 18... Nxd4 {[%clk 0:01:23.4]} 19. Bxd4 {[%clk
0:01:32]} 19... Rxc1 {[%clk 0:01:23.5]} 20. Rxc1 {[%clk 0:01:32.2]} 20... Qxd4
{[%clk 0:01:24.1]} 21. Qxd4 {[%clk 0:01:31.7]} 21... Rxd4 {[%clk 0:01:25]} 22.
Rc8+ {[%clk 0:01:31.4]} 22... Rd8 {[%clk 0:01:03.7]} 23. Rc7 {[%clk 0:01:29.6]}
23... Bh4 {[%clk 0:00:51.5]} 24. Rxb7 {[%clk 0:01:14.6]} 24... h6 {[%clk
0:00:42.2]} 25. Rxa7 {[%clk 0:00:42.4]} 25... Rd2 {[%clk 0:00:33.8]} 26. Nh3
{[%clk 0:00:30.7]} 26... Rxb2 {[%clk 0:00:30.5]} 27. a4 {[%clk 0:00:29.5]} 27...
g5 {[%clk 0:00:30.3]} 28. Ra8+ {[%clk 0:00:26]} 28... Kg7 {[%clk 0:00:30.2]} 29.
a5 {[%clk 0:00:18.5]} 29... Rb1+ {[%clk 0:00:18.8]} 30. Kg2 {[%clk 0:00:17.6]}
30... Rb2 {[%clk 0:00:19.7]} 31. Kg1 {[%clk 0:00:14.4]} 31... g4 {[%clk
0:00:16.7]} 32. fxg4 {[%clk 0:00:13.9]} 32... fxg4 {[%clk 0:00:17.6]} 33. Nf4
{[%clk 0:00:14.5]} 33... Bxf2+ {[%clk 0:00:18]} 34. Kf1 {[%clk 0:00:13.9]} 34...
Be3 {[%clk 0:00:15.6]} 35. Nd5 {[%clk 0:00:13.1]} 35... Bd4 {[%clk 0:00:12.7]}
36. a6 {[%clk 0:00:09.6]} 36... Rf2+ {[%clk 0:00:12.3]} 37. Ke1 {[%clk
0:00:09.2]} 37... Rxh2 {[%clk 0:00:12.8]} 38. Nf6 {[%clk 0:00:06.5]} 38... Bxe5
{[%clk 0:00:11.2]} 39. Nxg4 {[%clk 0:00:06.9]} 39... Bc3+ {[%clk 0:00:11]} 40.
Kf1 {[%clk 0:00:06]} 40... Ra2 {[%clk 0:00:11.4]} 41. Ne3 {[%clk 0:00:03]} 41...
Bd2 {[%clk 0:00:07]} 42. Nf5+ {[%clk 0:00:01.7]} 42... Kf6 {[%clk 0:00:07.5]}
0-1

[Event "*** Titled Tuesday Blitz"]
[Site "Chess.com"]
[Date "2020.12.29"]
[Round "9"]
[White "RobertoJBM"]
[Black "GM_LOADING"]
[Result "0-1"]
[WhiteElo "2678"]
[BlackElo "2519"]
[TimeControl "180+1"]
[EndTime "11:45:05 PST"]
[Termination "GM_LOADING won on time"]

1. d4 {[%clk 0:03:00.9]} 1... Nf6 {[%clk 0:01:55]} 2. c4 {[%clk 0:02:59.8]} 2...
e6 {[%clk 0:01:54.9]} 3. Nc3 {[%clk 0:02:59]} 3... Bb4 {[%clk 0:01:55.3]} 4. Qc2
{[%clk 0:02:52.9]} 4... Nc6 {[%clk 0:01:54.9]} 5. Nf3 {[%clk 0:02:50.9]} 5... d6
{[%clk 0:01:55]} 6. g3 {[%clk 0:02:45.6]} 6... e5 {[%clk 0:01:50.7]} 7. d5
{[%clk 0:02:40.1]} 7... Bxc3+ {[%clk 0:01:49.1]} 8. Qxc3 {[%clk 0:02:38.5]} 8...
Ne7 {[%clk 0:01:50]} 9. Bg2 {[%clk 0:02:37.4]} 9... O-O {[%clk 0:01:47.9]} 10.
O-O {[%clk 0:02:37]} 10... c6 {[%clk 0:01:47.5]} 11. dxc6 {[%clk 0:02:35.6]}
11... bxc6 {[%clk 0:01:44.6]} 12. b4 {[%clk 0:02:35.2]} 12... Qc7 {[%clk
0:01:43.6]} 13. Bb2 {[%clk 0:02:32.3]} 13... Bf5 {[%clk 0:01:27.7]} 14. Nd2
{[%clk 0:02:24.1]} 14... Rab8 {[%clk 0:01:22.6]} 15. a4 {[%clk 0:02:03.3]} 15...
a6 {[%clk 0:01:14.2]} 16. Rfc1 {[%clk 0:01:56.9]} 16... h6 {[%clk 0:01:10.1]}
17. Ba3 {[%clk 0:01:51.1]} 17... Rfd8 {[%clk 0:01:05.3]} 18. Nb3 {[%clk
0:01:38.9]} 18... Be4 {[%clk 0:00:58.1]} 19. f3 {[%clk 0:01:36.3]} 19... Bf5
{[%clk 0:00:57]} 20. e4 {[%clk 0:01:35.2]} 20... Be6 {[%clk 0:00:56.5]} 21. Kh1
{[%clk 0:01:32.9]} 21... Qa7 {[%clk 0:00:46.3]} 22. Rd1 {[%clk 0:01:18]} 22...
Ng6 {[%clk 0:00:24.6]} 23. Rd2 {[%clk 0:01:14.8]} 23... d5 {[%clk 0:00:19.6]}
24. Nc5 {[%clk 0:01:04.4]} 24... d4 {[%clk 0:00:19.5]} 25. Qc2 {[%clk
0:01:01.3]} 25... Bc8 {[%clk 0:00:19.9]} 26. Nd3 {[%clk 0:00:52.5]} 26... Qc7
{[%clk 0:00:13.9]} 27. Rf1 {[%clk 0:00:50.3]} 27... Be6 {[%clk 0:00:10.4]} 28.
Nc5 {[%clk 0:00:47.9]} 28... Bc8 {[%clk 0:00:10]} 29. Qd3 {[%clk 0:00:38.8]}
29... h5 {[%clk 0:00:08.4]} 30. Rdf2 {[%clk 0:00:34.4]} 30... h4 {[%clk
0:00:08]} 31. Kg1 {[%clk 0:00:33.4]} 31... hxg3 {[%clk 0:00:06.5]} 32. hxg3
{[%clk 0:00:33.4]} 32... Nh5 {[%clk 0:00:07]} 33. Kh2 {[%clk 0:00:30.6]} 33...
Qe7 {[%clk 0:00:07]} 34. Qd2 {[%clk 0:00:17.7]} 34... Nxg3 {[%clk 0:00:06.7]}
35. Re1 {[%clk 0:00:11.8]} 35... Qh4+ {[%clk 0:00:06.5]} 36. Kg1 {[%clk
0:00:12.7]} 36... Nf4 {[%clk 0:00:06.8]} 37. Nd3 {[%clk 0:00:09.1]} 37... Ng6
{[%clk 0:00:04]} 38. Rd1 {[%clk 0:00:06.6]} 38... Rd6 {[%clk 0:00:03.6]} 39. b5
{[%clk 0:00:06]} 39... Rf6 {[%clk 0:00:03.7]} 40. Nc5 {[%clk 0:00:03.4]} 40...
Nf4 {[%clk 0:00:03.4]} 41. bxa6 {[%clk 0:00:02.7]} 41... Rh6 {[%clk 0:00:03.2]}
0-1

[Event "*** Titled Tuesday Blitz"]
[Site "Chess.com"]
[Date "2020.12.29"]
[Round "9"]
[White "dretch"]
[Black "tjychess"]
[Result "1-0"]
[WhiteElo "2849"]
[BlackElo "2740"]
[TimeControl "180+1"]
[EndTime "11:45:06 PST"]
[Termination "dretch won on time"]

1. d4 {[%clk 0:03:00.9]} 1... Nf6 {[%clk 0:03:00]} 2. c4 {[%clk 0:03:00.8]} 2...
e6 {[%clk 0:03:00.3]} 3. Nc3 {[%clk 0:03:01.4]} 3... Bb4 {[%clk 0:03:00.1]} 4.
Qc2 {[%clk 0:03:01.9]} 4... O-O {[%clk 0:02:59.6]} 5. e4 {[%clk 0:03:01.1]} 5...
d5 {[%clk 0:02:54.3]} 6. e5 {[%clk 0:03:01.1]} 6... Nfd7 {[%clk 0:02:54]} 7. a3
{[%clk 0:02:55.9]} 7... Bxc3+ {[%clk 0:02:47.5]} 8. bxc3 {[%clk 0:02:55.6]} 8...
c5 {[%clk 0:02:43]} 9. Nf3 {[%clk 0:02:55.1]} 9... Nc6 {[%clk 0:02:42.8]} 10.
Ng5 {[%clk 0:02:52.4]} 10... g6 {[%clk 0:02:40.4]} 11. Nf3 {[%clk 0:02:50.4]}
11... Qc7 {[%clk 0:02:20.4]} 12. cxd5 {[%clk 0:02:44]} 12... exd5 {[%clk
0:02:21.3]} 13. Bd3 {[%clk 0:02:44]} 13... Re8 {[%clk 0:02:12.8]} 14. O-O {[%clk
0:02:43]} 14... b6 {[%clk 0:02:11.6]} 15. Ng5 {[%clk 0:02:38]} 15... Nf8 {[%clk
0:02:08.9]} 16. Qb2 {[%clk 0:02:29.3]} 16... Ne6 {[%clk 0:01:55.4]} 17. Nxe6
{[%clk 0:02:27.7]} 17... Bxe6 {[%clk 0:01:53.9]} 18. Be3 {[%clk 0:02:26.1]}
18... c4 {[%clk 0:01:51.8]} 19. Be2 {[%clk 0:02:26.1]} 19... Rab8 {[%clk
0:01:48.2]} 20. g4 {[%clk 0:02:24.3]} 20... Qe7 {[%clk 0:01:30.1]} 21. f4 {[%clk
0:02:08.9]} 21... f5 {[%clk 0:01:29.9]} 22. Qb5 {[%clk 0:01:42.4]} 22... Qd7
{[%clk 0:00:59.8]} 23. gxf5 {[%clk 0:01:41]} 23... Bxf5 {[%clk 0:00:57.9]} 24.
Bf3 {[%clk 0:01:40.7]} 24... Nxe5 {[%clk 0:00:46.5]} 25. Bxd5+ {[%clk
0:01:36.7]} 25... Kg7 {[%clk 0:00:39.7]} 26. Qxd7+ {[%clk 0:01:33.2]} 26... Nxd7
{[%clk 0:00:40.6]} 27. Rfe1 {[%clk 0:01:32.2]} 27... Nf6 {[%clk 0:00:33.6]} 28.
Bc6 {[%clk 0:01:30.2]} 28... Red8 {[%clk 0:00:31]} 29. d5 {[%clk 0:01:24.5]}
29... Nxd5 {[%clk 0:00:26.7]} 30. Bd4+ {[%clk 0:01:24.5]} 30... Kh6 {[%clk
0:00:26.2]} 31. Be5 {[%clk 0:01:21.9]} 31... Rbc8 {[%clk 0:00:22.9]} 32. Bb7
{[%clk 0:01:22]} 32... Rc5 {[%clk 0:00:22.6]} 33. Rad1 {[%clk 0:01:17.2]} 33...
Rd7 {[%clk 0:00:22.8]} 34. Ba8 {[%clk 0:01:11.8]} 34... Rd8 {[%clk 0:00:18]} 35.
Bb7 {[%clk 0:01:10.2]} 35... Rd7 {[%clk 0:00:18.2]} 36. Ba6 {[%clk 0:01:04.1]}
36... Nc7 {[%clk 0:00:10]} 37. Rxd7 {[%clk 0:00:57.2]} 37... Bxd7 {[%clk
0:00:10.9]} 38. Bb7 {[%clk 0:00:57.3]} 38... Bc6 {[%clk 0:00:07]} 39. Bd4 {[%clk
0:00:48.6]} 39... Bxb7 {[%clk 0:00:07]} 40. Bxc5 {[%clk 0:00:48.8]} 40... bxc5
{[%clk 0:00:07.1]} 41. Re7 {[%clk 0:00:49]} 41... Nd5 {[%clk 0:00:08]} 42. Rxb7
{[%clk 0:00:49]} 42... Nxc3 {[%clk 0:00:08.9]} 43. Kf1 {[%clk 0:00:36.2]} 43...
Nd5 {[%clk 0:00:06.3]} 44. Rb5 {[%clk 0:00:35.9]} 44... Nxf4 {[%clk 0:00:04.3]}
45. Rxc5 {[%clk 0:00:36]} 45... g5 {[%clk 0:00:03]} 46. Rxc4 {[%clk 0:00:35.2]}
46... Kh5 {[%clk 0:00:03.5]} 47. Rc7 {[%clk 0:00:34.6]} 47... h6 {[%clk
0:00:03.6]} 48. Rxa7 {[%clk 0:00:34.6]} 48... Kg4 {[%clk 0:00:04.5]} 49. Re7
{[%clk 0:00:32]} 49... Kh3 {[%clk 0:00:04.4]} 50. Kg1 {[%clk 0:00:32]} 50... h5
{[%clk 0:00:04.2]} 51. Re3+ {[%clk 0:00:31.5]} 51... Kg4 {[%clk 0:00:04.7]} 52.
a4 {[%clk 0:00:31.6]} 52... Nd5 {[%clk 0:00:04.6]} 53. Re5 {[%clk 0:00:29.1]}
53... Nf4 {[%clk 0:00:02.2]} 54. a5 {[%clk 0:00:28.2]} 54... Kf3 {[%clk
0:00:02.6]} 55. a6 {[%clk 0:00:27.5]} 1-0

[Event "*** Titled Tuesday Blitz"]
[Site "Chess.com"]
[Date "2020.12.29"]
[Round "9"]
[White "penguingm1"]
[Black "GM_Crest"]
[Result "1-0"]
[WhiteElo "2928"]
[BlackElo "2693"]
[TimeControl "180+1"]
[EndTime "11:45:07 PST"]
[Termination "penguingm1 won on time"]

1. d4 {[%clk 0:03:00.9]} 1... d5 {[%clk 0:02:59.3]} 2. Bf4 {[%clk 0:03:00.9]}
2... e6 {[%clk 0:02:58.3]} 3. e3 {[%clk 0:03:01]} 3... Bd6 {[%clk 0:02:58]} 4.
Nf3 {[%clk 0:02:58.1]} 4... c5 {[%clk 0:02:57.1]} 5. Nbd2 {[%clk 0:02:48.6]}
5... Bxf4 {[%clk 0:02:55]} 6. exf4 {[%clk 0:02:48.3]} 6... cxd4 {[%clk
0:02:55.1]} 7. Nxd4 {[%clk 0:02:47.9]} 7... Qb6 {[%clk 0:02:55.3]} 8. c3 {[%clk
0:02:24.6]} 8... Nc6 {[%clk 0:02:49]} 9. N2f3 {[%clk 0:02:22.4]} 9... Qxb2
{[%clk 0:02:20.1]} 10. Nb5 {[%clk 0:02:21.6]} 10... Ke7 {[%clk 0:02:20.6]} 11.
Bd3 {[%clk 0:01:17.6]} 11... a6 {[%clk 0:02:18.1]} 12. Rb1 {[%clk 0:01:16.7]}
12... Qxa2 {[%clk 0:02:17.8]} 13. Ra1 {[%clk 0:01:02.6]} 13... Qb2 {[%clk
0:02:17.3]} 14. O-O {[%clk 0:01:02.8]} 14... Nf6 {[%clk 0:02:12]} 15. Re1 {[%clk
0:00:38]} 15... Bd7 {[%clk 0:02:03.1]} 16. Rb1 {[%clk 0:00:21.8]} 16... Qa2
{[%clk 0:02:02.1]} 17. Ra1 {[%clk 0:00:20.4]} 17... Qb2 {[%clk 0:02:02.3]} 18.
Re2 {[%clk 0:00:20.3]} 18... Qxa1 {[%clk 0:01:44.4]} 19. Qxa1 {[%clk 0:00:21.2]}
19... axb5 {[%clk 0:01:44.9]} 20. Qb2 {[%clk 0:00:21.9]} 20... Ra5 {[%clk
0:01:44.9]} 21. h3 {[%clk 0:00:21.8]} 21... Rha8 {[%clk 0:01:43.7]} 22. Kh2
{[%clk 0:00:17.6]} 22... Ra3 {[%clk 0:01:14.8]} 23. Bxb5 {[%clk 0:00:15]} 23...
Ne4 {[%clk 0:01:14.7]} 24. Bxc6 {[%clk 0:00:15.1]} 24... Bxc6 {[%clk 0:01:10.8]}
25. c4 {[%clk 0:00:12.8]} 25... Kf8 {[%clk 0:00:41.6]} 26. cxd5 {[%clk 0:00:10]}
26... Bxd5 {[%clk 0:00:41.5]} 27. Rxe4 {[%clk 0:00:10.4]} 27... Bxe4 {[%clk
0:00:29.6]} 28. Qb4+ {[%clk 0:00:10.5]} 28... Kg8 {[%clk 0:00:29.8]} 29. Qxe4
{[%clk 0:00:11.4]} 29... h6 {[%clk 0:00:26]} 30. Qxb7 {[%clk 0:00:10.2]} 30...
R3a7 {[%clk 0:00:25.8]} 31. Qc6 {[%clk 0:00:08.8]} 31... Rd8 {[%clk 0:00:25.2]}
32. Ne5 {[%clk 0:00:08.4]} 32... Ra2 {[%clk 0:00:18.3]} 33. Qb6 {[%clk
0:00:05.7]} 33... Rf8 {[%clk 0:00:15.8]} 34. Nd7 {[%clk 0:00:05.8]} 34... Re8
{[%clk 0:00:15.1]} 35. Qc6 {[%clk 0:00:05.6]} 35... Rd8 {[%clk 0:00:14.3]} 36.
Qc7 {[%clk 0:00:05.4]} 36... Re8 {[%clk 0:00:13.9]} 37. Ne5 {[%clk 0:00:04.8]}
37... Rf8 {[%clk 0:00:13.7]} 38. Qc5 {[%clk 0:00:04.9]} 38... Re8 {[%clk
0:00:12.4]} 39. Qe3 {[%clk 0:00:05]} 39... Rd8 {[%clk 0:00:11.9]} 40. Qg3 {[%clk
0:00:05.3]} 40... Rdd2 {[%clk 0:00:10.8]} 41. Ng4 {[%clk 0:00:05.7]} 41... Kh8
{[%clk 0:00:09.3]} 42. Qc3 {[%clk 0:00:04]} 42... h5 {[%clk 0:00:06.4]} 43. Ne5
{[%clk 0:00:03.4]} 43... Rxf2 {[%clk 0:00:06.6]} 44. Qg3 {[%clk 0:00:02.5]}
44... Kg8 {[%clk 0:00:03.4]} 45. Nd3 {[%clk 0:00:02.6]} 45... Rxg2+ {[%clk
0:00:01.1]} 46. Qxg2 {[%clk 0:00:02.7]} 1-0

[Event "*** Titled Tuesday Blitz"]
[Site "Chess.com"]
[Date "2020.12.29"]
[Round "9"]
[White "annacramling"]
[Black "pavelalexandru07"]
[Result "0-1"]
[WhiteElo "2077"]
[BlackElo "2276"]
[TimeControl "180+1"]
[EndTime "11:45:07 PST"]
[Termination "pavelalexandru07 won by resignation"]

1. d4 {[%clk 0:03:00.9]} 1... Nf6 {[%clk 0:02:57.2]} 2. c4 {[%clk 0:02:59.6]}
2... c5 {[%clk 0:02:54.4]} 3. d5 {[%clk 0:02:57.4]} 3... e6 {[%clk 0:02:53.7]}
4. Nc3 {[%clk 0:02:57.2]} 4... exd5 {[%clk 0:02:53.8]} 5. cxd5 {[%clk
0:02:58.1]} 5... d6 {[%clk 0:02:54.2]} 6. e4 {[%clk 0:02:58]} 6... g6 {[%clk
0:02:54.8]} 7. f4 {[%clk 0:02:57.2]} 7... Bg7 {[%clk 0:02:55.1]} 8. Bb5+ {[%clk
0:02:57.5]} 8... Nfd7 {[%clk 0:02:55.3]} 9. Be2 {[%clk 0:02:55.7]} 9... Qh4+
{[%clk 0:02:54.1]} 10. g3 {[%clk 0:02:55]} 10... Qd8 {[%clk 0:02:55]} 11. Nf3
{[%clk 0:02:53.7]} 11... O-O {[%clk 0:02:55]} 12. O-O {[%clk 0:02:53.4]} 12...
Re8 {[%clk 0:02:54.7]} 13. Bd2 {[%clk 0:02:46.5]} 13... Na6 {[%clk 0:02:51.3]}
14. a3 {[%clk 0:02:19.2]} 14... Nc7 {[%clk 0:02:50.3]} 15. Qc2 {[%clk
0:02:18.7]} 15... Rb8 {[%clk 0:02:45.6]} 16. a4 {[%clk 0:02:18.2]} 16... b6
{[%clk 0:02:30.6]} 17. Nb5 {[%clk 0:02:10]} 17... Ba6 {[%clk 0:01:30.9]} 18.
Nxc7 {[%clk 0:01:44.6]} 18... Bxe2 {[%clk 0:01:30.5]} 19. Nxe8 {[%clk
0:01:40.5]} 19... Bxf1 {[%clk 0:01:30.3]} 20. Nxg7 {[%clk 0:01:16.6]} 20... Be2
{[%clk 0:01:18.1]} 21. Ng5 {[%clk 0:00:42.8]} 21... Nf6 {[%clk 0:01:03.9]} 22.
Bc3 {[%clk 0:00:33.8]} 22... Bg4 {[%clk 0:00:54]} 23. h3 {[%clk 0:00:18]} 23...
Bc8 {[%clk 0:00:52.8]} 24. N7e6 {[%clk 0:00:13.6]} 24... fxe6 {[%clk 0:00:52.1]}
25. Nxe6 {[%clk 0:00:10.9]} 25... Bxe6 {[%clk 0:00:51.9]} 26. dxe6 {[%clk
0:00:11.8]} 26... Qe7 {[%clk 0:00:52.4]} 27. f5 {[%clk 0:00:11]} 27... Rf8
{[%clk 0:00:42.5]} 28. Qd2 {[%clk 0:00:10.7]} 28... Nxe4 {[%clk 0:00:39.2]} 29.
Qe3 {[%clk 0:00:07.1]} 29... Nxc3 {[%clk 0:00:37.8]} 30. bxc3 {[%clk 0:00:06.5]}
30... Rxf5 {[%clk 0:00:37.4]} 31. Rd1 {[%clk 0:00:05.1]} 31... Re5 {[%clk
0:00:36.9]} 32. Qd3 {[%clk 0:00:05]} 32... Rxe6 {[%clk 0:00:36.5]} 33. Qd5
{[%clk 0:00:05.5]} 33... Kg7 {[%clk 0:00:35]} 34. Rf1 {[%clk 0:00:05.4]} 34...
Rf6 {[%clk 0:00:34.3]} 35. Rd1 {[%clk 0:00:05.1]} 35... Qe6 {[%clk 0:00:30.8]}
36. Qxe6 {[%clk 0:00:04.5]} 36... Rxe6 {[%clk 0:00:30.8]} 37. Kf2 {[%clk
0:00:05]} 37... Kf6 {[%clk 0:00:30.9]} 38. Rd3 {[%clk 0:00:04.8]} 38... Ke7
{[%clk 0:00:30.9]} 39. Kf3 {[%clk 0:00:04.6]} 39... Rf6+ {[%clk 0:00:29.1]} 40.
Ke2 {[%clk 0:00:04.6]} 40... Ke6 {[%clk 0:00:28.3]} 41. Re3+ {[%clk 0:00:04.6]}
41... Kd7 {[%clk 0:00:28.5]} 42. c4 {[%clk 0:00:04.4]} 42... Re6 {[%clk
0:00:28.6]} 43. Rxe6 {[%clk 0:00:03.9]} 43... Kxe6 {[%clk 0:00:29.5]} 44. Ke3
{[%clk 0:00:04.2]} 44... Ke5 {[%clk 0:00:29.8]} 45. h4 {[%clk 0:00:03.8]} 45...
Kf5 {[%clk 0:00:29]} 46. Kf3 {[%clk 0:00:03.9]} 46... Ke5 {[%clk 0:00:29.1]} 47.
Ke3 {[%clk 0:00:04.3]} 47... d5 {[%clk 0:00:29.7]} 48. cxd5 {[%clk 0:00:04.2]}
48... Kxd5 {[%clk 0:00:30.6]} 49. Kd3 {[%clk 0:00:04.3]} 49... c4+ {[%clk
0:00:31.1]} 50. Kc3 {[%clk 0:00:04.5]} 50... Kc5 {[%clk 0:00:32]} 51. g4 {[%clk
0:00:04.4]} 51... a6 {[%clk 0:00:32.2]} 52. h5 {[%clk 0:00:03.9]} 52... gxh5
{[%clk 0:00:31.8]} 53. gxh5 {[%clk 0:00:04.4]} 53... b5 {[%clk 0:00:32.3]} 54.
axb5 {[%clk 0:00:04.2]} 54... axb5 {[%clk 0:00:33.2]} 55. h6 {[%clk 0:00:04.8]}
55... Kd5 {[%clk 0:00:33.1]} 56. Kb4 {[%clk 0:00:04.6]} 56... Ke5 {[%clk
0:00:32.9]} 0-1